bitfinex/quotes_SOLUSD_20240601
["timestamp","ask_amount","ask_price","bid_price","bid_amount"]
[1717203923589,16.55,167.14,167.01,42.4748]
[1717203923590,16.55,167.14,167.02,0.34]
[1717203924091,2.2141,167.11,167.02,0.34]
[1717203924309,16.55,167.14,167.02,0.34]
[1717203924506,2.2139,167.12,167.03,78.08]
[1717203925309,2.2139,167.12,167.04,1.03896876]
[1717203925714,2.2139,167.12,167.04,0.97896876]
[1717203926010,2.2138,167.13,167.05,18.08]
[1717203926892,18.7637,167.14,167.06,0.17]
[1717203927206,2.2138,167.13,167.04,18.36]
[1717203927510,16.55,167.14,167.04,18.36]
[1717203928416,2.2139,167.12,167.04,18.36]
[1717203929522,2.2138,167.13,167.04,18.36]
[1717203930410,2.214,167.12,167.04,18.36]
[1717203931713,2.214,167.12,167.04,0.28]
[1717203932725,2.2138,167.13,167.04,0.28]
[1717203933528,18.7637,167.14,167.04,0.28]
[1717203934041,2.2138,167.13,167.04,0.28]
[1717203936028,2.2138,167.13,167.03,18.08]
[1717203936229,16.55,167.14,167.03,18.08]
[1717203936732,2.214,167.12,167.03,18.08]
[1717203938809,2.214,167.12,167.04,0.17]
[1717203939030,2.2138,167.13,167.03,78.08]
[1717203939223,2.2138,167.13,167.04,0.34]
[1717203940912,2.214,167.12,167.04,0.91446741]
[1717203941331,2.2138,167.13,167.04,0.91446741]
[1717203941629,2.2138,167.13,167.05,78.08]
[1717203941836,2.2138,167.13,167.06,0.57439863]
[1717203942224,2.2138,167.13,167.05,78.08]
[1717203942531,2.2136,167.15,167.05,78.08]
[1717203942726,2.2136,167.15,167.06,1.53554524]
[1717203943618,2.2137,167.14,167.06,1.53554524]
[1717203944313,2.2138,167.13,167.06,1.53554524]
[1717203946314,2.2138,167.13,167.06,1.53554121]
[1717203947536,5.51,167.1,167.07,15.9761]
[1717203947831,5.51,167.1,167.08,6.2633]
[1717203948618,5.51,167.11,167.09,6.2633]
[1717203949638,5.51,167.1,167.09,6.2633]
[1717203950813,2.2138,167.13,167.07,75.9761]
[1717203951141,5.51,167.12,167.1,6.2633]
[1717203951317,5.51,167.12,167.11,0.43689543]
[1717203952337,5.51,167.12,167.11,0.43686928]
[1717203953139,2.2137,167.14,167.11,6.2633]
[1717203953314,2.2136,167.15,167.11,6.2633]
[1717203953629,6.6398,167.18,167.12,1.63283007]
[1717203953630,2.2132,167.18,167.12,1.63283007]
[1717203953832,4.7713116,167.2,167.13,6.2633]
[1717203953833,2.2133,167.17,167.13,6.2633]
[1717203954151,5.51,167.16,167.14,1.63263468]
[1717203954350,2.2132,167.18,167.14,6.2633]
[1717203954645,0.3453116,167.2,167.14,6.2633]
[1717203954646,5.51,167.17,167.15,0.32699404]
[1717203954842,5.51,167.17,167.15,1.21201005]
[1717203955019,5.51,167.17,167.15,8.53167956]
[1717203955646,0.3453116,167.2,167.15,6.4117]
[1717203955647,5.51,167.16,167.15,6.4117]
[1717203957052,5.51,167.17,167.15,6.4117]
[1717203957434,2.213,167.19,167.15,6.4117]
[1717203957735,5.51,167.18,167.16,6.4117]
[1717203957945,5.51,167.19,167.16,6.4117]
[1717203958837,5.51,167.18,167.16,6.4117]
[1717203960339,5.51,167.19,167.18,6.5937]
[1717203960550,0.3453116,167.2,167.19,6.5937]
[1717203961846,0.3453116,167.2,167.19,8.20931362]
[1717203962630,0.3453116,167.2,167.19,1.61561362]
[1717203962829,5.8553116,167.2,167.14,6.5937]
[1717203963044,5.51,167.17,167.14,6.5937]
[1717203963258,0.3453116,167.2,167.1,6.5937]
[1717203963259,5.51,167.16,167.1,6.5937]
[1717203963430,2.213,167.19,167.12,60.0]
[1717203963755,2.213,167.19,167.13,18.08]
[1717203964067,2.5582116,167.2,167.13,18.08]
[1717203964934,0.3453116,167.2,167.14,0.17]
[1717203965763,0.3453116,167.2,167.14,0.34]
[1717203966584,2.5582116,167.2,167.14,0.34]
[1717203966861,2.5582116,167.2,167.13,18.08]
[1717203967653,0.3453116,167.2,167.13,18.08]
[1717203967850,0.3453116,167.2,167.14,0.17]
[1717203968743,0.3453116,167.2,167.15,18.08]
[1717203968943,0.3453116,167.2,167.16,6.5937]
[1717203969143,0.3453116,167.2,167.19,18.08]
[1717203969360,0.3453116,167.2,167.07,6.5937]
[1717203969562,2.2134,167.16,167.07,6.5937]
[1717203969958,2.2134,167.16,167.07,42.5337]
[1717203970162,20.9361,167.19,167.07,42.5337]
[1717203970355,2.2138,167.14,167.07,24.6737]
[1717203970965,16.51,167.16,167.07,24.6737]
[1717203970966,2.2134,167.16,167.07,24.6737]
[1717203971650,2.2134,167.16,167.08,0.17]
[1717203971851,2.2134,167.16,167.08,0.34]
[1717203972178,2.2136,167.15,167.08,0.17]
[1717203972356,2.2136,167.15,167.07,24.6737]
[1717203973563,2.2134,167.16,167.07,24.6737]
[1717203974266,2.2134,167.16,167.08,0.34]
[1717203974470,2.2136,167.15,167.08,0.34]
[1717203974671,2.2136,167.15,167.07,24.6737]
[1717203975463,2.2137,167.14,167.07,6.5937]
[1717203975649,2.2136,167.15,167.07,6.5937]
[1717203975972,2.2138,167.14,167.07,6.5937]
[1717203976666,2.2138,167.14,167.05,18.08]
[1717203976849,2.2137,167.14,167.04,54.36]
[1717203977255,2.2138,167.13,167.04,54.36]
[1717203977454,2.2138,167.13,167.04,18.42]
[1717203978374,2.2137,167.14,167.04,18.42]
[1717203979055,2.2141,167.11,167.04,18.42]
[1717203979252,2.2139,167.13,167.04,18.42]
[1717203980777,2.2137,167.14,167.04,18.42]
[1717203981069,2.2138,167.13,167.04,18.42]
[1717203982054,2.214,167.12,167.04,18.42]
[1717203983071,19.6944,167.14,166.97,15.34281754]
[1717203983270,2.2151,167.04,166.97,6.5036]
[1717203983465,2.2153,167.02,166.95,25.48031754]
[1717203983665,2.2152,167.03,166.95,25.48031754]
[1717203983980,2.2152,167.03,166.95,25.49725889]
[1717203984273,2.215,167.04,166.96,8.85615889]
[1717203984856,20.939,167.09,166.97,54.02]
[1717203985079,2.2146,167.07,166.98,78.08]
[1717203985273,2.2146,167.07,167.0,18.08]
[1717203985781,2.2145,167.08,166.99,35.94]
[1717203986162,2.2146,167.07,166.99,35.94]
[1717203986361,2.2145,167.08,166.98,54.36]
[1717203986673,2.2146,167.07,166.99,0.34]
[1717203986979,2.2147,167.06,166.97,18.08]
[1717203987165,2.2147,167.06,166.98,0.17]
[1717203987353,2.2147,167.06,166.98,0.34]
[1717203987756,2.2149,167.05,166.97,0.34]
[1717203989157,18.7248,167.06,166.97,0.34]
[1717203989759,18.7248,167.06,166.96,8.85615889]
[1717203989975,2.2159,166.97,166.95,8.85615889]
[1717203990167,2.2161,166.96,166.94,8.85615889]
[1717203991280,4.4287,166.97,166.94,8.85615889]
[1717203991658,4.4287,166.96,166.93,8.85615889]
[1717203992060,2.2162,166.95,166.93,8.85615889]
[1717203992572,2.2163,166.94,166.93,8.85615889]
[1717203992767,19.9414,166.96,166.86,18.08]
[1717203992970,2.2165,166.93,166.87,5.64489275]
[1717203993170,2.2165,166.93,166.86,5.64489275]
[1717203993477,2.2164,166.94,166.86,5.64489275]
[1717203993676,16.51,166.95,166.93,8.86021597]
[1717203993879,2.2163,166.94,166.93,8.86021597]
[1717203994079,2.216,166.97,166.93,8.86021597]
[1717203994264,2.2161,166.96,166.93,8.86021597]
[1717203994769,2.2162,166.95,166.93,8.86021597]
[1717203995378,2.2163,166.94,166.93,8.86021597]
[1717203996257,2.2163,166.94,166.92,8.86021597]
[1717203997070,2.2163,166.94,166.92,8.85945954]
[1717203998469,2.2162,166.95,166.92,8.85945954]
[1717203998675,2.2163,166.94,166.92,8.85945954]
[1717203999379,2.2162,166.95,166.92,8.85945954]
[1717203999875,20.9387,166.98,166.92,8.85945954]
[1717204000392,20.9387,166.98,166.92,8.85932235]
[1717204000572,2.2162,166.95,166.92,8.85932235]
[1717204000773,6.6449,166.95,166.92,8.85932235]
[1717204001983,2.2163,166.94,166.92,8.85932235]
[1717204002367,6.6451,166.93,166.92,8.85932235]
[1717204002584,6.6451,166.93,166.87,8.85932235]
[1717204002585,4.4287,166.93,166.87,8.85932235]
[1717204002995,2.217,166.89,166.87,8.85932235]
[1717204003289,2.2169,166.9,166.87,8.85932235]
[1717204003495,2.2169,166.9,166.85,8.85932235]
[1717204004104,2.2168,166.91,166.85,8.85932235]
[1717204005483,2.2168,166.91,166.84,6.5036]
[1717204005688,2.2168,166.91,166.85,8.86948072]
[1717204006280,2.2168,166.91,166.84,15.37308072]
[1717204007092,2.2169,166.9,166.84,8.86948072]
[1717204008301,2.217,166.89,166.84,8.86948072]
[1717204009199,2.217,166.89,166.85,8.86948072]
[1717204009672,2.217,166.89,166.84,8.86948072]
[1717204010484,2.2171,166.88,166.84,8.86948072]
[1717204011493,2.2171,166.88,166.85,8.86948072]
[1717204012206,2.2171,166.88,166.84,8.86948072]
[1717204012379,2.217,166.89,166.85,8.86948072]
[1717204015172,2.217,166.89,166.86,8.86948072]
[1717204015497,2.217,166.89,166.86,8.74948072]
[1717204016797,2.2171,166.88,166.86,8.74948072]
[1717204018300,2.217,166.89,166.86,8.74948072]
[1717204019493,5.52,166.87,166.86,8.74948072]
[1717204022180,5.52,166.87,166.8,6.582]
[1717204022392,5.52,166.84,166.81,5.65104717]
[1717204025300,5.52,166.82,166.81,5.65104717]
[1717204025500,5.52,166.82,166.77,12.20864717]
[1717204025694,5.52,166.82,166.78,5.65104717]
[1717204026691,2.2176,166.85,166.78,5.65104717]
[1717204026692,5.52,166.81,166.78,5.65104717]
[1717204027186,5.52,166.79,166.74,8.88748643]
[1717204027385,5.52,166.79,166.74,33.52508643]
[1717204027587,5.52,166.79,166.74,15.44508643]
[1717204028193,5.52,166.78,166.74,15.44508643]
[1717204028505,5.52,166.77,166.72,6.5576]
[1717204029012,5.52,166.77,166.72,24.6376]
[1717204029312,2.2181,166.81,166.72,24.6376]
[1717204029491,5.52,166.78,166.72,24.6376]
[1717204030106,2.2182,166.8,166.72,24.6376]
[1717204030292,17.7351,166.84,166.71,18.08]
[1717204030293,5.52,166.77,166.71,18.08]
[1717204030610,5.52,166.76,166.71,17.9]
[1717204031708,5.52,166.76,166.7,35.94]
[1717204031915,5.52,166.74,166.69,18.08]
[1717204032103,5.52,166.74,166.69,24.6376]
[1717204032492,5.52,166.74,166.67,94.1309747]
[1717204032493,5.52,166.74,166.67,0.8115417]
[1717204032697,5.52,166.72,166.67,0.8115417]
[1717204032899,5.52,166.72,166.67,25.4491417]
[1717204034512,5.52,166.73,166.67,30.9691417]
[1717204035710,22.08,166.8,166.67,30.9691417]
[1717204035913,5.52,166.73,166.67,30.9691417]
[1717204036112,5.52,166.74,166.67,30.9691417]
[1717204036317,5.52,166.73,166.67,30.9691417]
[1717204036704,5.52,166.74,166.67,30.9691417]
[1717204037706,5.52,166.73,166.67,25.4491417]
[1717204037912,5.52,166.73,166.67,30.9691417]
[1717204041813,5.52,166.73,166.67,25.4491417]
[1717204042007,5.52,166.73,166.67,30.9691417]
[1717204042615,5.52,166.73,166.67,25.4491417]
[1717204042820,5.52,166.73,166.67,30.9691417]
[1717204043129,2.2185,166.78,166.68,83.6]
[1717204043315,5.52,166.77,166.7,83.6]
[1717204043629,5.52,166.77,166.71,0.34]
[1717204044134,5.52,166.79,166.73,23.6]
[1717204044307,5.52,166.78,166.73,18.08]
[1717204044507,5.52,166.78,166.72,23.6]
[1717204044718,5.52,166.78,166.73,0.34]
[1717204045121,5.52,166.78,166.73,6.9598]
[1717204045529,2.2182,166.8,166.73,6.9598]
[1717204045842,5.52,166.78,166.73,6.8998]
[1717204046723,5.52,166.78,166.73,6.6198]
[1717204053531,2.2179,166.82,166.74,84.6998]
[1717204053733,5.52,166.8,166.75,0.34]
[1717204053949,5.52,166.79,166.75,6.9598]
[1717204054641,5.52,166.78,166.75,6.6198]
[1717204054940,5.52,166.78,166.73,22.14]
[1717204056032,5.52,166.78,166.73,6.6288]
[1717204056224,5.52,166.77,166.73,6.6288]
[1717204056419,4.69298673,166.83,166.72,0.34]
[1717204056420,2.2179,166.83,166.74,83.1976]
[1717204056621,7.7379,166.82,166.75,5.86]
[1717204056919,5.52,166.82,166.75,5.86]
[1717204057342,5.52,166.82,166.75,23.94]
[1717204059222,2.2177,166.84,166.76,78.08]
[1717204059436,5.52,166.82,166.77,6.9688]
[1717204059919,5.52,166.81,166.77,6.6288]
[1717204062044,5.52,166.8,166.74,16.5688]
[1717204062245,5.52,166.78,166.73,6.3971]
[1717204062543,5.52,166.77,166.73,6.3971]
[1717204063127,5.52,166.77,166.7,33.5647]
[1717204063330,5.52,166.76,166.7,39.0847]
[1717204064128,5.52,166.76,166.71,6.7371]
[1717204066435,2.2182,166.8,166.71,6.7371]
[1717204066646,2.2182,166.8,166.71,30.3371]
[1717204066647,5.52,166.78,166.71,30.3371]
[1717204066836,5.52,166.78,166.72,5.52]
[1717204067037,5.52,166.78,166.71,24.8171]
[1717204067748,5.52,166.78,166.71,30.3371]
[1717204067929,5.52,166.77,166.71,30.3371]
[1717204070157,5.52,166.77,166.71,24.8171]
[1717204070361,5.52,166.77,166.71,30.3371]
[1717204071036,5.52,166.78,166.71,30.3371]
[1717204071644,42.08304,166.96,166.73,83.6]
[1717204071645,2.218,166.82,166.73,83.6]
[1717204071847,5.52,166.8,166.74,5.86]
[1717204072154,5.52,166.8,166.75,0.72039371]
[1717204073256,5.52,166.8,166.75,1.87782668]
[1717204074642,2.218,166.82,166.75,1.87782668]
[1717204074839,5.52,166.8,166.75,1.87782668]
[1717204075043,5.52,166.8,166.75,8.23952668]
[1717204075262,5.52,166.81,166.75,8.23952668]
[1717204077457,5.52,166.81,166.75,6.3617]
[1717204080365,5.52,166.8,166.75,6.3617]
[1717204081744,2.218,166.81,166.74,0.34]
[1717204081945,5.52,166.77,166.73,0.34]
[1717204082150,5.52,166.76,166.7,89.42612271]
[1717204082357,5.52,166.76,166.71,26.6508]
[1717204082557,5.52,166.77,166.71,26.6508]
[1717204083252,5.52,166.77,166.72,0.17]
[1717204084663,2.2181,166.81,166.72,0.17]
[1717204084849,5.52,166.78,166.72,0.17]
[1717204086266,2.218,166.82,166.72,0.17]
[1717204086472,2.2179,166.82,166.73,5.52]
[1717204086672,5.52,166.8,166.73,5.52]
[1717204086864,5.52,166.8,166.74,0.17]
[1717204087069,5.52,166.8,166.74,0.34]
[1717204089852,5.52,166.79,166.74,0.34]
[1717204090367,5.52,166.79,166.72,54.02]
[1717204090570,5.52,166.78,166.73,0.34]
[1717204091272,5.52,166.78,166.72,24.53715456]
[1717204091774,5.52,166.77,166.71,5.52]
[1717204092773,5.52,166.77,166.7,68.90298268]
[1717204092966,5.52,166.76,166.71,0.17]
[1717204093653,5.52,166.76,166.71,0.34]
[1717204093854,2.2184,166.79,166.71,0.34]
[1717204094760,2.2184,166.79,166.7,18.08]
[1717204096882,2.2184,166.78,166.7,18.08]
[1717204097786,2.2184,166.79,166.7,18.08]
[1717204097968,2.2185,166.78,166.69,36.28]
[1717204098158,2.2185,166.78,166.69,9.24298268]
[1717204098364,2.2186,166.77,166.69,0.34]
[1717204098679,2.2186,166.77,166.69,20.34]
[1717204098879,2.2185,166.78,166.69,20.34]
[1717204099086,22.08,166.8,166.69,0.34]
[1717204099381,2.2185,166.78,166.69,0.34]
[1717204101383,2.2185,166.78,166.67,61.4823417]
[1717204101581,5.52,166.73,166.68,20.0]
[1717204101765,2.2185,166.78,166.68,20.0]
[1717204101976,5.52,166.72,166.68,20.0]
[1717204102185,5.52,166.73,166.68,20.0]
[1717204102571,5.52,166.74,166.68,20.0]
[1717204103468,5.52,166.74,166.67,12.9823417]
[1717204103673,5.52,166.73,166.67,7.4623417]
[1717204103874,5.52,166.72,166.67,0.8115417]
[1717204104080,5.52,166.72,166.67,20.8115417]
[1717204109805,5.52,166.72,166.67,0.8115417]
[1717204109970,5.52,166.71,166.67,0.8115417]
[1717204113975,5.52,166.7,166.67,0.8115417]
[1717204114176,5.52,166.69,166.67,0.8115417]
[1717204114697,5.52,166.68,166.67,0.8115417]
[1717204116676,5.52,166.68,166.67,0.3115417]
[1717204118283,2.2194,166.71,166.67,0.3115417]
[1717204119205,2.2193,166.72,166.67,0.3115417]
[1717204119391,5.52,166.73,166.67,0.3115417]
[1717204119607,17.7395,166.78,166.67,0.3115417]
[1717204119906,5.52,166.72,166.67,0.3115417]
[1717204120079,5.52,166.71,166.67,0.3115417]
[1717204120286,5.52,166.7,166.67,0.3115417]
[1717204120480,5.52,166.71,166.67,0.3115417]
[1717204120696,2.219,166.74,166.67,0.1915417]
[1717204120894,2.2186,166.77,166.68,5.52]
[1717204121086,6.6472,166.78,166.68,5.52]
[1717204121280,5.52,166.75,166.68,5.52]
[1717204121486,5.52,166.74,166.68,5.52]
[1717204122098,2.2188,166.75,166.67,0.1915417]
[1717204122292,5.52,166.73,166.67,5.7115417]
[1717204124587,5.52,166.73,166.67,0.1915417]
[1717204126996,5.52,166.72,166.67,0.1915417]
[1717204127398,5.52,166.71,166.67,0.1915417]
[1717204128705,5.52,166.7,166.67,0.1915417]
[1717204131491,2.2192,166.73,166.67,0.1915417]
[1717204131689,5.52,166.71,166.67,0.1915417]
[1717204133713,5.52,166.71,166.67,6.3259417]
[1717204133914,5.52,166.72,166.67,6.3259417]
[1717204134214,2.219,166.74,166.67,6.3259417]
[1717204134396,2.219,166.74,166.67,27.4327417]
[1717204134596,7.739,166.74,166.67,27.4327417]
[1717204135393,5.52,166.73,166.67,27.4327417]
[1717204136214,2.219,166.74,166.67,27.4327417]
[1717204136396,5.52,166.73,166.67,21.9127417]
[1717204136732,5.52,166.72,166.67,15.7783417]
[1717204137014,5.52,166.72,166.68,6.1344]
[1717204138214,2.2195,166.71,166.67,0.1915417]
[1717204138393,5.52,166.69,166.67,0.1915417]
[1717204139001,2.2194,166.71,166.67,0.1915417]
[1717204139213,5.52,166.7,166.67,0.1915417]
[1717204141109,5.52,166.69,166.67,0.1915417]
[1717204142714,5.52,166.68,166.67,0.1915417]
[1717204145817,2.2196,166.7,166.67,0.1915417]
[1717204146021,5.52,166.69,166.67,0.1915417]
[1717204146216,13.3136,166.75,166.67,0.1915417]
[1717204146529,5.52,166.71,166.67,0.1915417]
[1717204148206,5.52,166.71,166.67,6.3268417]
[1717204148805,2.219,166.74,166.68,6.1353]
[1717204149009,5.52,166.73,166.67,11.8468417]
[1717204149235,2.219,166.74,166.67,11.8468417]
[1717204149236,2.219,166.74,166.69,6.1353]
[1717204149432,5.52,166.73,166.7,1.32769386]
[1717204149617,7.739,166.74,166.7,1.32769386]
[1717204150034,5.52,166.74,166.7,1.32769386]
[1717204150231,7.739,166.74,166.68,22.614]
[1717204150409,5.52,166.73,166.69,6.1353]
[1717204151531,7.7391,166.73,166.69,6.1353]
[1717204151761,5.52,166.72,166.69,6.1353]
[1717204152025,5.52,166.72,166.67,0.1915417]
[1717204152233,5.52,166.72,166.67,6.3268417]
[1717204152411,5.52,166.72,166.68,6.1353]
[1717204152935,5.52,166.73,166.68,6.1353]
[1717204153316,2.219,166.74,166.68,6.1353]
[1717204153515,5.52,166.73,166.67,5.7115417]
[1717204153717,2.2189,166.75,166.68,7.93564131]
[1717204154042,7.739,166.74,166.68,7.93553341]
[1717204154248,2.2189,166.75,166.68,13.45553341]
[1717204154418,5.52,166.74,166.68,13.45553341]
[1717204156247,5.52,166.74,166.68,11.6553]
[1717204157351,2.2189,166.75,166.68,11.6553]
[1717204157650,2.2185,166.78,166.71,5.52]
[1717204157950,5.52,166.77,166.71,7.79991379]
[1717204158124,7.7386,166.77,166.71,7.79991379]
[1717204159148,4.4363,166.81,166.71,7.79991379]
[1717204159337,5.52,166.77,166.71,7.79991379]
[1717204159525,5.52,166.77,166.71,2.27991379]
[1717204159945,2.2186,166.78,166.71,2.27991379]
[1717204160150,5.52,166.77,166.71,7.79991379]
[1717204160318,2.2183,166.8,166.72,23.77]
[1717204160518,5.52,166.79,166.73,7.7996403]
[1717204160724,5.52,166.79,166.75,15.4488]
[1717204160943,5.52,166.8,166.76,2.3979803]
[1717204161146,5.52,166.8,166.77,6.3026]
[1717204161525,5.52,166.8,166.75,21.7514]
[1717204161725,5.52,166.79,166.75,21.7514]
[1717204162128,7.7382,166.8,166.76,6.3026]
[1717204162534,5.52,166.79,166.76,6.3026]
[1717204162936,2.2181,166.81,166.76,6.3026]
[1717204163145,2.218,166.82,166.76,6.3026]
[1717204163339,2.2178,166.83,166.76,6.3026]
[1717204163547,5.52,166.81,166.75,5.52]
[1717204163750,5.52,166.81,166.78,6.3026]
[1717204163927,2.2177,166.84,166.78,6.3026]
[1717204164128,5.52,166.83,166.78,6.3026]
[1717204164343,5.52,166.84,166.79,0.32312317]
[1717204164539,4.4346,166.87,166.79,6.3026]
[1717204164743,5.52,166.83,166.79,6.3026]
[1717204164939,5.52,166.82,166.79,6.3026]
[1717204165857,2.2177,166.84,166.79,6.3026]
[1717204166158,5.52,166.82,166.79,6.3026]
[1717204166349,2.2177,166.84,166.79,6.3026]
[1717204166554,5.52,166.82,166.79,6.3026]
[1717204167356,2.2178,166.83,166.79,6.3026]
[1717204167357,7.7378,166.83,166.79,6.3026]
[1717204167957,5.52,166.82,166.79,6.3026]
[1717204169751,2.2175,166.86,166.79,5.52]
[1717204169938,5.52,166.85,166.79,5.52]
[1717204170554,5.52,166.85,166.8,1.21733534]
[1717204170760,7.7375,166.85,166.81,6.3026]
[1717204172640,2.2174,166.86,166.81,6.3026]
[1717204172856,5.52,166.85,166.81,6.3026]
[1717204173456,5.52,166.85,166.8,15.4488]
[1717204173457,5.52,166.85,166.82,6.3026]
[1717204173659,13.302,166.9,166.8,15.4488]
[1717204173660,19.9487,166.93,166.83,1.70036557]
[1717204173867,5.52,166.87,166.83,8.00296557]
[1717204174541,5.52,166.86,166.83,8.00296557]
[1717204174742,5.52,166.86,166.83,6.3026]
[1717204177748,5.52,166.84,166.8,6.4948]
[1717204177950,2.2174,166.86,166.8,6.4948]
[1717204179343,2.2173,166.87,166.8,6.4948]
[1717204181265,2.2174,166.86,166.8,6.4948]
[1717204182666,2.2173,166.87,166.8,6.4948]
[1717204182873,5.52,166.86,166.8,6.6415]
[1717204183170,5.52,166.86,166.82,6.6415]
[1717204183867,2.2173,166.87,166.83,6.6415]
[1717204184057,5.52,166.86,166.83,6.6415]
[1717204191780,7.7374,166.86,166.83,6.6415]
[1717204192170,7.7374,166.86,166.81,15.8409]
[1717204192486,7.7374,166.86,166.81,22.4824]
[1717204193077,7.7373,166.87,166.81,28.0024]
[1717204193281,2.2172,166.88,166.82,1.79628894]
[1717204193481,2.217,166.89,166.83,8.43768126]
[1717204193780,7.7371,166.88,166.83,8.43768126]
[1717204194567,7.7371,166.88,166.83,6.6415]
[1717204195392,5.52,166.87,166.83,6.6415]
[1717204195576,2.217,166.89,166.83,6.6415]
[1717204195763,5.52,166.89,166.83,6.6415]
[1717204195966,7.737,166.89,166.83,6.6415]
[1717204196561,7.737,166.89,166.83,12.1615]
[1717204197492,7.737,166.89,166.83,6.6415]
[1717204198273,2.217,166.89,166.83,6.6415]
[1717204198489,5.52,166.88,166.82,12.1607]
[1717204198785,7.7371,166.88,166.84,6.6407]
[1717204199689,2.217,166.89,166.84,6.6407]
[1717204199989,7.737,166.89,166.83,21.9808]
[1717204200162,2.217,166.89,166.83,21.9808]
[1717204200358,5.52,166.88,166.84,6.3152]
[1717204200557,5.52,166.87,166.84,6.3152]
[1717204201285,5.52,166.86,166.81,6.4852]
[1717204201589,5.52,166.86,166.82,6.3152]
[1717204202083,2.217,166.89,166.83,23.6023063]
[1717204202275,5.52,166.89,166.85,6.3152]
[1717204202463,2.2169,166.9,166.86,1.08155724]
[1717204202671,2.2168,166.91,166.85,6.3152]
[1717204203186,5.52,166.9,166.85,6.3152]
[1717204203386,2.2168,166.91,166.84,0.17]
[1717204203387,2.2167,166.91,166.86,1.4520537]
[1717204203587,7.7367,166.91,166.87,6.3152]
[1717204203971,5.52,166.9,166.87,6.3152]
[1717204204310,7.7367,166.91,166.87,6.3152]
[1717204204497,5.52,166.91,166.87,6.3152]
[1717204204791,2.2165,166.93,166.85,135.6053]
[1717204204969,5.52,166.93,166.87,5.52]
[1717204205166,8.8604,166.98,166.88,18.25]
[1717204205369,5.52,166.93,166.88,18.25]
[1717204205678,5.52,166.93,166.89,6.3152]
[1717204205877,7.7365,166.93,166.89,6.3152]
[1717204206895,2.2164,166.94,166.89,6.3152]
[1717204207195,5.52,166.93,166.88,15.3601]
[1717204207392,5.52,166.93,166.89,6.3152]
[1717204207594,15.5102,166.99,166.89,6.3152]
[1717204207595,4.8502986,166.99,166.89,6.3152]
[1717204207796,5.52,166.93,166.88,15.3601]
[1717204208001,5.52,166.93,166.89,6.3152]
[1717204208372,5.52,166.92,166.89,6.3152]
[1717204209913,5.52,166.91,166.86,0.17]
[1717204210081,5.52,166.91,166.87,6.3152]
[1717204211298,5.52,166.92,166.87,6.3152]
[1717204212373,5.52,166.92,166.86,14.2315492]
[1717204212981,5.52,166.93,166.87,5.52]
[1717204213297,5.52,166.92,166.86,6.3152]
[1717204213501,5.52,166.92,166.86,11.8352]
[1717204215268,5.52,166.92,166.86,6.3152]
[1717204215699,5.52,166.92,166.86,11.8352]
[1717204216077,5.52,166.92,166.86,6.3152]
[1717204216891,2.2164,166.94,166.86,11.8352]
[1717204217482,2.2164,166.94,166.87,1.98410327]
[1717204217791,2.2164,166.94,166.86,11.8352]